Cogmind - Beta 12 --- EXPLORER MODE // 2023.12.21 @ 20:21:38 Player: Analote Result: Destroyed by D-53 Grenadier with Mini Grenade Launcher Performance ------------- Evolutions (0) 0 Regions Visited (2) 400 Robots Destroyed (0) 0 Value Destroyed (0) 0 Prototype IDs (0) 0 Alien Tech Used (0) 0 Bonus (0) 0 TOTAL SCORE: 400 Bonus ------- None Cogmind --------- Core Integrity 0/250 Matter 300/300 Energy 100/100 System Corruption 0% Temperature Cool (0) Movement Core (200) Ox3 Location -10/Mines Parts ------- > --- POWER (1) -------- (None) > --- PROPULSION (2) --- (None) > --- UTILITY (3) ------ Medium Storage Unit Power Shielding > --- WEAPON (2) ------- (None) > --- INVENTORY (10) --- Light Ion Engine Peak State ------------ > --- POWER ------------ (None) > --- PROPULSION ------- Aluminum Leg Aluminum Leg > --- UTILITY ---------- Medium Storage Unit Targeting Computer Power Shielding > --- WEAPON ----------- EM Pulse Gun Assault Rifle > --- INVENTORY -------- (None) [Rating: 7] Favorites ----------- Power None Propulsion Aluminum Leg Leg Aluminum Leg Utility Power Shielding Storage Medium Storage Unit Processor Targeting Computer Protection Power Shielding Weapon Assault Rifle Energy Gun EM Pulse Gun Ballistic Gun Assault Rifle Build | -11 -10 -10 ------- Run | Jun Mat Min Slots Evolved 1 | . 1 . Power . | . . . Propulsion . | . . . Utility 1 | . 1 . Weapon . | . . . Parts Attached 7 | 6 1 . Power . | . . . Engine . | . . . Core . | . . . Reactor . | . . . Propulsion 2 | 2 . . Treads . | . . . Leg 2 | 2 . . Wheel . | . . . Hover . | . . . Flight . | . . . Utility 3 | 2 1 . Device . | . . . Storage 1 | 1 . . Processor 1 | . 1 . Hackware . | . . . Protection 1 | 1 . . Artifact . | . . . Weapon 2 | 2 . . Energy Gun 1 | 1 . . Energy Cannon . | . . . Ballistic Gun 1 | 1 . . Ballistic Cannon . | . . . Launcher . | . . . Special Weapon . | . . . Impact Weapon . | . . . Slashing Weapon . | . . . Piercing Weapon . | . . . Special Melee Weapon . | . . . Unidentified Prototypes . | . . . Parts Lost 5 | . . 5 Power . | . . . Propulsion 2 | . . 2 Utility 1 | . . 1 Weapon 2 | . . 2 Highest Loss Streak 4 | . . 4 To Critical Strikes . | . . . Average Slot Usage (%) 79 | . 87 77 Leg 22 | . 25 22 Storage 12 | . 12 12 Processor 11 | . 12 11 Protection 12 | . 12 12 Energy Gun 8 | . 12 6 Ballistic Gun 11 | . 12 10 Naked Turns . | . . . Heaviest Build 15 | 15 15 15 Greatest Support 20 | 20 20 20 Greatest Overweight (x) 4 | . . 4 Average Overweight (x) . | . . . Largest Inventory Capacity 10 | 10 10 10 Average Capacity 9 | 8 10 10 Most Carried 2 | 2 . 1 Average Carried . | . . . Final Capacity 10 | 10 10 10 Final Carried 1 | 1 . 1 Class Distribution -------------------- 100% | Hacker-Mutant Dominant Class ---------------- Hacker-Mutant | -10/Materials Hacker-Mutant | -10/Mines Resources | -11 -10 -10 ----------- Run | Jun Mat Min Matter Collected 332 | 232 38 62 Remotely . | . . . Salvage Created 137 | . . 137 Parts . | . . . Haulers Intercepted . | . . . Recyclers Shooed . | . . . Parts Field Recycled . | . . . Retrieved Matter . | . . . Parts Self-Destructed . | . . . Prevented . | . . . Kills | -11 -10 -10 ------- Run | Jun Mat Min Combat Hostiles Destroyed 8 | . . 8 Guns 8 | . . 8 Classes Destroyed 1 | . . 1 Assembled 8 | . . 8 Best Kill Streak 8 | . . 8 Combat Bots Only 8 | . . 8 Max Kills in Single Turn 1 | . . 1 Gunslinging . | . . . Exploded . | . . . Melee . | . . . Uniques/NPCs Destroyed . | . . . Combat | -11 -10 -10 -------- Run | Jun Mat Min Damage Taken 660 | . 10 650 Core 263 | . . 263 Absorbed by Shields . | . . . Core Remaining (%) 100 | 100 . . Volleys Fired 23 | . . 23 Largest 2 | . . 2 Hottest 60 | . . 60 Shots Fired 36 | . . 36 Gun 36 | . . 36 Cannon . | . . . Launcher . | . . . Special . | . . . Kinetic 23 | . . 23 Thermal . | . . . Explosive . | . . . Electromagnetic 13 | . . 13 Robot Hit Streak 21 | . . 21 Robot Miss Streak 1 | . . 1 Penetration Max . | . . . Secondary Targets 3 | . . 3 Max Gunslinging Chain 1 | . . 1 Shots Hit Robots 31 | . . 31 Core Hits 16 | . . 16 Critical Kills . | . . . Critical Parts Destroyed . | . . . Critical Strikes . | . . . Melee Attacks . | . . . Impact . | . . . Slashing . | . . . Piercing . | . . . Sneak Attacks . | . . . Combat Hostiles . | . . . Follow-up Attacks . | . . . Damage Inflicted 381 | . . 381 Guns 381 | . . 381 Cannons . | . . . Explosions . | . . . Melee . | . . . Ramming . | . . . Kinetic 262 | . . 262 Thermal . | . . . Explosive . | . . . Electromagnetic 119 | . . 119 Impact . | . . . Slashing . | . . . Piercing . | . . . Highest Corruption . | . . . Average Corruption . | . . . Corruption Purged . | . . . Corruption Blocked . | . . . Overload Shots . | . . . Overflow Damage . | . . . Projectiles . | . . . Explosions . | . . . Melee . | . . . Knockbacks . | . . . Impact . | . . . Kinetic . | . . . Secondary . | . . . Self-Inflicted Damage . | . . . Shots . | . . . Rammed . | . . . Targets Rammed . | . . . Kicked . | . . . Crushed . | . . . Highest Temperature . | . . . Average Temperature . | . . . Received Heat Transfer . | . . . Siege Activations . | . . . Robots Corrupted . | . . . Combat Hostiles . | . . . Parts Fried . | . . . Impact Corruptions . | . . . Robots Melted . | . . . Combat Hostiles . | . . . Parts Melted . | . . . Heat Transferred . | . . . Parts Sabotaged . | . . . Parts Stolen . | . . . Parts Stripped . | . . . Power Chain Reactions . | . . . Missiles Intercepted . | . . . Alert | -11 -10 -10 ------- Run | Jun Mat Min Peak Influence 30 | . 30 8 Initial 8 | . . 8 Average 3 | . 3 4 Maximum Alert Level . | . . . Low Security (%) 100 | 100 100 100 Level 1 . | . . . Level 2 . | . . . Level 3 . | . . . Level 4 . | . . . Level 5 . | . . . High Security . | . . . Max Security . | . . . Squads Dispatched . | . . . Investigation . | . . . Extermination . | . . . Reinforcement . | . . . Assault . | . . . Garrison . | . . . Intercept . | . . . Searches Triggered . | . . . Construction Impeded . | . . . Haulers Reinforced . | . . . Active Scanning Responses . | . . . Cargo Convoy Interrupts . | . . . Stealth | -11 -10 -10 --------- Run | Jun Mat Min Distress Signals 1 | . 1 . Communications Jammed . | . . . Distress Signals . | . . . Times Spotted 27 | . 4 23 Peak Tracking Total 18 | . 4 18 Tactical Retreats 3 | . . 3 Traps | -11 -10 -10 ------- Run | Jun Mat Min Traps Triggered . | . . . Indirectly . | . . . Trap Hack Attempts . | . . . Triggered . | . . . Disarmed . | . . . Reprogrammed . | . . . Reused . | . . . Traps Extracted . | . . . Installed . | . . . Triggered . | . . . Machines | -11 -10 -10 ---------- Run | Jun Mat Min Machines Disabled . | . . . Max in Single Turn . | . . . Machines Repaired . | . . . Machines Sabotaged . | . . . Overloaded Fab Kills . | . . . Hacking | -11 -10 -10 --------- Run | Jun Mat Min Machines Accessed . | . . . Terminals . | . . . Fabricators . | . . . Repair Stations . | . . . Recycling Units . | . . . Scanalyzers . | . . . Garrison Access . | . . . Total Hacks . | . . . Successful . | . . . Failed . | . . . Catastrophic . | . . . Database Lockouts . | . . . Manual . | . . . Terminals . | . . . Fabricators . | . . . Repair Stations . | . . . Recycling Units . | . . . Scanalyzers . | . . . Garrison Access . | . . . Terminal Hacks . | . . . Fabricator Hacks . | . . . Repair Station Hacks . | . . . Recycling Unit Hacks . | . . . Scanalyzer . | . . . Garrison Access Hacks . | . . . Unauthorized Hacks . | . . . Terminals . | . . . Fabricators . | . . . Repair Stations . | . . . Recycling Units . | . . . Scanalyzers . | . . . Garrison Access . | . . . Data Cores Recovered . | . . . Used . | . . . Hacking Detections . | . . . Full Trace Events . | . . . Feedback Events . | . . . Feedback Blocked . | . . . Robot Schematics Acquired . | . . . Robots Built . | . . . Authchips . | . . . Time . | . . . Total Robot Build Rating . | . . . Part Schematics Acquired . | . . . Parts Built . | . . . Authchips . | . . . Time . | . . . Total Part Build Rating . | . . . Parts Repaired . | . . . Time . | . . . Parts Recycled . | . . . Recycled Matter . | . . . Retrieved Matter . | . . . Retrieved Components . | . . . Parts Scanalyzed . | . . . Part Schematics Acquired . | . . . Parts Damaged . | . . . Bothacking | -11 -10 -10 ------------ Run | Jun Mat Min Used RIF Installer . | . . . Robots Hacked . | . . . Non-combat . | . . . Combat . | . . . Robot Hacks Applied . | . . . Relay Couplers Released . | . . . Fabnet Peak Effective % . | . . . Robots Rewired . | . . . Allies Hacked . | . . . Hacks Repelled . | . . . Allies | -11 -10 -10 -------- Run | Jun Mat Min Total Allies . | . . . Largest Group . | . . . Highest-Rated Group . | . . . Highest-Rated Ally . | . . . Total Orders . | . . . Ally Attacks . | . . . Total Damage . | . . . Kills . | . . . Allies Corrupted . | . . . Allies Melted . | . . . Intel | -11 -10 -10 ------- Run | Jun Mat Min Robot Analysis Total . | . . . Derelict Logs Recovered 1 | . . 1 Drone Launches . | . . . Drone Recoveries . | . . . Exploration | -11 -10 -10 ------------- Run | Jun Mat Min Turns Passed 369 | 69 76 224 Spaces Moved 228 | 51 54 123 Core 16 | 7 . 9 Treads . | . . . Legs 212 | 44 54 114 Wheels . | . . . Hover . | . . . Flight . | . . . Fastest Speed 50 | 50 120 120 Average Speed 121 | 110 120 126 Slowest Speed 250 | 120 120 250 Overloaded Moves . | . . . Propulsion Burnouts . | . . . Robots Hopped . | . . . Cave-ins Triggered . | . . . Exploration Rate (%) 23 | 4 22 44 Regions Visited 2 Branch Regions 1 Pre-discovered Areas 1 | . . 1 Known Exits Taken 2 | 1 1 . Unknown Exits Taken . | . . . Scrap Searched . | . . . Spaces Dug . | . . . Terrain Destroyed . | . . . Melee . | . . . Projectile . | . . . AOE . | . . . Terrain Rammed . | . . . Walls Destroyed . | . . . Machines Disabled . | . . . Actions | -11 -10 -10 --------- Run | Jun Mat Min Total 284 | 63 65 156 Wait 20 | . 11 9 Move 226 | 50 53 123 Hop . | . . . Pick Up 8 | 7 . 1 Fast Attach . | . . . Attach 7 | 6 1 . Detach . | . . . Swap . | . . . Drop . | . . . Fire 23 | . . 23 Melee . | . . . Ram . | . . . Kick . | . . . Crush . | . . . Escape Stasis . | . . . Rewire . | . . . Trap . | . . . Miscellaneous . | . . . Route ------- -11/Junkyard -10/Materials -10/Mines History --------- Turn | Location | Event 2 | -11/Junkyard | Met Revision 17 5 | -11/Junkyard | Identified exit to Materials 5 | -11/Junkyard | Discovered exit to Materials (range 15) 70 | -11/Junkyard | Entered Materials 70 | -10/Materials | Evolved 1 slot: Utility x1 140 | -10/Materials | Identified exit to Mines 140 | -10/Materials | Discovered exit to Mines (range 6) 146 | -10/Materials | Entered Mines 236 | -10/Mines | Assembled infested the area 241 | -10/Mines | Assisted by a Guerilla fighting off Assembled 285 | -10/Mines | Learned location of Zion (-7) 300 | -10/Mines | Build established: Hacker-Mutant 319 | -10/Mines | Destroyed 8 combat bots 367 | -10/Mines | Core integrity fell below 50% 368 | -10/Mines | Core integrity fell below 20% 370 | -10/Mines | Destroyed by D-53 Grenadier with Mini Grenade Launcher Last Messages --------------- 00262_ Switching to secondary target: as-25380. 00263_ Acquired 8 matter. 00266_ Acquired 3 matter. 00271_ as-95081 destroyed. 00272_ Acquired 3 matter. 00275_ EM Pulse Gun destroyed. 00281_ as-25380 destroyed. 00282_ Acquired 9 matter. 00285_ Acquired derelict log, extracted data. World map updated: -7/Zion. 00298_ as-90685 destroyed. 00321_ T-07 Excavator is excavating. 00341_ Acquired 14 matter. 00346_ The unstable cave ceiling collapses. 00348_ Aluminum Leg destroyed. 00352_ The unstable cave ceiling collapses. 00354_ Assault Rifle destroyed. 00357_ The unstable cave ceiling collapses. 00369_ Targeting Computer destroyed. 00370_ The unstable cave ceiling collapses. Map ----- +----------------------------------------------------+ | | | | | | | | | | | | | | | | | | | ??????????????????????????????????????????????? | | ??????????????????????????????????????????????? | | ??????????????????????????????????????????????? | | ??????????????????????????????????????????????? | | ??????????????????????????????????????????????? | | ??????????????????????????????????????????????? | | ??????????????????????????????????????????????? | | ??????????????????????????????????????????????? | | ??????????????????????##??????????????????????? | | ????????????????????### ??????????????????????? | | ???????????????????## ?????###??????????????? | | ??????????????????## ##### ##?????????????? | | ??????????????????# # # #?????????????? | | ??????????????????# #?????????????? | | ?????????????????## #?????????????? | | ???????????????### #??????????????? | | ????????? ##??## @ #???????????????? | | ???????? ### #??????????????? | | ????????## # ##??????????????? | | ??????? # d #???????????????? | | ??????? d ##???????????????? | | ??????? % % #????????????????? | | ??????????# ###????????????????? | | ??????????## ## #?????????????????? | | ?????????? ##??# ##### #????????????? | | ????????????????# #????????????? | | ???????????????## # #### #????????????? | | ???????????????# # ## ##????????????????? | | ???????????????# #### ##???????????????? | | ???????????????## ### #???????????????? | | ????????????????### ### #???????????????? | | ??????????????????# ## #???????????????? | | ??????????????????# ## ##??????????????? | | ################### ## ####???????????? | | %%%%% #???????????? | | ################ ### "#???????????? | | %#??????????????# #?## #???????????? | | ###????????????# #??# ####???????????? | | ##???????????# #??# #####??????????????? | | ##??????????# #??# ####??????????????????? | | #??????????# #??# #?????????????????????? | +----------------------------------------------------+ Best States ------------- Heat Dissipation 25 Energy Generation 5 Energy Capacity 100 Matter Stores 300 Matter Capacity 300 Sight Range 16 Terrain Scan Density 10 Resistance: KI 35 Resistance: TH 35 Resistance: EX 35 Resistance: EM 35 Resistance: I 35 Resistance: S 35 Resistance: P 35 Power Shielding 33 Evasion (%) 55 Targeting Accuracy 5 Offensive Hacking 20 Item Schematics ----------------- None Robot Schematics ------------------ None Fabricated ------------ Nothing Alien Tech Used ----------------- None Achievements -------------- None Challenges ------------ None Game ------ Seed GodLauncherDiverter Manual? 0 Play Time 00:04:07 Cumulative 80.8 hours Start 2023.12.21 @ 20:18:57 End 2023.12.21 @ 20:21:38 Sessions 1 Manual Loads 0 Difficulty Explorer Special Mode None Game No. 108 Rogue 4 Adventurer 1 Explorer 103 Win Type - Total 1 Types 0/0/1/0/0/0/0/0/0 Lore% 55 Gallery% 62 Achievement% 62 Wizard Run 0 Options --------- ASCII 0 Keyboard 0 Movement Numpad Keybinds 0 Fullscreen 2 Font 18/SmallcapsGlow Map View 76x50 Tactical HUD 1 Map Filters NONE Filters NONE Steam 1 RUN: 945d3fc2-fd46-497c-aeb2-718a51bf493f